[Event "Titled Tuesday Blitz July 18 Early 2023"]
[White "Kiseleva, Arina"]
[Black "Chor, Kevin"]
[WhiteFideId "4164989"]
[BlackFideId "2090740"]
[WhiteElo "2203"]
[BlackElo "2567"]
[Result "0-1"]
[Round "1"]
[TimeControl "180+2"]
[Date "2023.07.18"]
[WhiteClock "0:00:10"]
[BlackClock "0:00:19"]
[Board "185"]

1. d4 {[%clk 0:03:00]}  Nf6 {[%clk 0:02:59]} 2. Nf3 {[%clk 0:02:59]}  g6 {[%clk 0:03:00]} 3. Nbd2 {[%clk 0:02:58]}  d5 {[%clk 0:02:59]} 4. Nb3 {[%clk 0:02:55]}  Bg7 {[%clk 0:02:58]} 5. e3 {[%clk 0:02:54]}  Nbd7 {[%clk 0:02:55]} 6. c4 {[%clk 0:02:54]}  c6 {[%clk 0:02:48]} 7. Qc2 {[%clk 0:02:47]}  O-O {[%clk 0:02:45]} 8. a4 {[%clk 0:02:41]}  Re8 {[%clk 0:02:34]} 9. cxd5 {[%clk 0:02:34]}  Nxd5 {[%clk 0:02:24]} 10. Bc4 {[%clk 0:02:23]}  e5 {[%clk 0:01:46]} 11. dxe5 {[%clk 0:02:17]}  Nxe5 {[%clk 0:01:44]} 12. Nxe5 {[%clk 0:02:17]}  Bxe5 {[%clk 0:01:44]} 13. O-O {[%clk 0:01:59]}  Bf5 {[%clk 0:01:38]} 14. Qe2 {[%clk 0:01:48]}  Qh4 {[%clk 0:01:22]} 15. g3 {[%clk 0:01:46]}  Qh3 {[%clk 0:01:20]} 16. Bd3 {[%clk 0:01:10]}  Bg4 {[%clk 0:01:10]} 17. f3 {[%clk 0:01:07]}  Be6 {[%clk 0:01:01]} 18. e4 {[%clk 0:00:52]}  Nb4 {[%clk 0:00:46]} 19. Nd2 {[%clk 0:00:32]}  Nxd3 {[%clk 0:00:33]} 20. Qxd3 {[%clk 0:00:33]}  Rad8 {[%clk 0:00:30]} 21. Qe2 {[%clk 0:00:32]}  Bd4+ {[%clk 0:00:24]} 22. Kh1 {[%clk 0:00:31]}  Qh5 {[%clk 0:00:25]} 23. Re1 {[%clk 0:00:23]}  Bh3 {[%clk 0:00:22]} 24. Nf1 {[%clk 0:00:19]}  Bb6 {[%clk 0:00:20]} 25. Be3 {[%clk 0:00:19]}  Ba5 {[%clk 0:00:20]} 26. Red1 {[%clk 0:00:18]}  Rxe4 {[%clk 0:00:19]} 27. Rxd8+ {[%clk 0:00:16]}  Bxd8 {[%clk 0:00:20]} 28. Qd3 {[%clk 0:00:10]}  Qxf3+ {[%clk 0:00:19]} 0-1


[Site "https://www.chess.com"]

[Event "Titled Tuesday Blitz July 18 Early 2023"]
[White "Larina, Maria"]
[Black "Pinero Rodriguez, Carlos Jose"]
[WhiteFideId "24113182"]
[BlackFideId "3901726"]
[WhiteElo "2200"]
[BlackElo "2566"]
[Result "0-1"]
[Round "1"]
[TimeControl "180+2"]
[Date "2023.07.18"]
[WhiteClock "0:00:04"]
[BlackClock "0:00:27"]
[Board "187"]

1. e4 {[%clk 0:03:00]}  c5 {[%clk 0:02:53]} 2. Nc3 {[%clk 0:03:00]}  e6 {[%clk 0:02:53]} 3. Nf3 {[%clk 0:02:59]}  a6 {[%clk 0:02:53]} 4. d4 {[%clk 0:02:59]}  cxd4 {[%clk 0:02:54]} 5. Nxd4 {[%clk 0:03:00]}  Qc7 {[%clk 0:02:54]} 6. g3 {[%clk 0:03:00]}  Nf6 {[%clk 0:02:54]} 7. Bg2 {[%clk 0:02:59]}  Be7 {[%clk 0:02:54]} 8. O-O {[%clk 0:02:58]}  O-O {[%clk 0:02:55]} 9. Re1 {[%clk 0:02:56]}  d6 {[%clk 0:02:55]} 10. a4 {[%clk 0:02:53]}  Nc6 {[%clk 0:02:50]} 11. Nxc6 {[%clk 0:02:50]}  bxc6 {[%clk 0:02:50]} 12. a5 {[%clk 0:02:35]}  e5 {[%clk 0:02:47]} 13. h3 {[%clk 0:02:28]}  Be6 {[%clk 0:02:43]} 14. Be3 {[%clk 0:02:20]}  c5 {[%clk 0:02:42]} 15. f4 {[%clk 0:02:08]}  Rab8 {[%clk 0:02:40]} 16. f5 {[%clk 0:02:00]}  Bd7 {[%clk 0:02:40]} 17. b3 {[%clk 0:01:54]}  Bc6 {[%clk 0:02:38]} 18. g4 {[%clk 0:01:51]}  Qb7 {[%clk 0:02:34]} 19. Bg5 {[%clk 0:01:40]}  h6 {[%clk 0:02:34]} 20. Bh4 {[%clk 0:01:40]}  Nh7 {[%clk 0:02:25]} 21. Bf2 {[%clk 0:01:35]}  Rfd8 {[%clk 0:02:11]} 22. Nd5 {[%clk 0:01:33]}  Bxd5 {[%clk 0:02:10]} 23. exd5 {[%clk 0:01:31]}  Bg5 {[%clk 0:02:08]} 24. Qd3 {[%clk 0:01:29]}  Qb5 {[%clk 0:02:05]} 25. Bf1 {[%clk 0:01:19]}  Qxd3 {[%clk 0:01:56]} 26. Bxd3 {[%clk 0:01:20]}  Ra8 {[%clk 0:01:55]} 27. h4 {[%clk 0:01:20]}  Bf4 {[%clk 0:01:54]} 28. Kg2 {[%clk 0:01:12]}  Nf6 {[%clk 0:01:54]} 29. Kf3 {[%clk 0:01:10]}  Rdb8 {[%clk 0:01:46]} 30. Ra4 {[%clk 0:01:05]}  Nxd5 {[%clk 0:01:17]} 31. Be4 {[%clk 0:01:04]}  Nc3 {[%clk 0:01:18]} 32. Bxa8 {[%clk 0:00:45]}  Nxa4 {[%clk 0:01:17]} 33. Bc6 {[%clk 0:00:40]}  Nc3 {[%clk 0:01:17]} 34. Rg1 {[%clk 0:00:26]}  f6 {[%clk 0:01:15]} 35. Be3 {[%clk 0:00:17]}  Bxe3 {[%clk 0:01:12]} 36. Kxe3 {[%clk 0:00:18]}  d5 {[%clk 0:01:12]} 37. g5 {[%clk 0:00:15]}  hxg5 {[%clk 0:01:07]} 38. hxg5 {[%clk 0:00:16]}  Kf7 {[%clk 0:01:07]} 39. g6+ {[%clk 0:00:12]}  Ke7 {[%clk 0:01:07]} 40. Rh1 {[%clk 0:00:11]}  Kd6 {[%clk 0:01:05]} 41. Ba4 {[%clk 0:00:08]}  Nxa4 {[%clk 0:01:04]} 42. bxa4 {[%clk 0:00:08]}  e4 {[%clk 0:01:00]} 43. Rh7 {[%clk 0:00:08]}  Rb7 {[%clk 0:01:00]} 44. c3 {[%clk 0:00:08]}  Ke5 {[%clk 0:00:59]} 45. Rh8 {[%clk 0:00:08]}  Kxf5 {[%clk 0:00:59]} 46. Rd8 {[%clk 0:00:05]}  Ke6 {[%clk 0:00:50]} 47. Re8+ {[%clk 0:00:05]}  Re7 {[%clk 0:00:49]} 48. Rb8 {[%clk 0:00:04]}  Ke5 {[%clk 0:00:42]} 49. Rb6 {[%clk 0:00:03]}  d4+ {[%clk 0:00:42]} 50. cxd4+ {[%clk 0:00:04]}  cxd4+ {[%clk 0:00:43]} 51. Kd2 {[%clk 0:00:04]}  e3+ {[%clk 0:00:29]} 52. Kd3 {[%clk 0:00:04]}  Kf4 {[%clk 0:00:28]} 53. Kxd4 {[%clk 0:00:04]}  e2 {[%clk 0:00:27]} 54. Rb1 {[%clk 0:00:03]}  e1=Q {[%clk 0:00:27]} 55. Rxe1 {[%clk 0:00:03]}  Rxe1 {[%clk 0:00:28]} 56. Kc5 {[%clk 0:00:04]}  Ra1 {[%clk 0:00:26]} 57. Kb6 {[%clk 0:00:04]}  Rxa4 {[%clk 0:00:26]} 58. Kxa6 {[%clk 0:00:05]}  Kf5 {[%clk 0:00:26]} 59. Kb6 {[%clk 0:00:05]}  Ra1 {[%clk 0:00:27]} 60. a6 {[%clk 0:00:05]}  Kxg6 {[%clk 0:00:27]} 61. a7 {[%clk 0:00:04]}  f5 {[%clk 0:00:27]} 0-1


[Site "https://www.chess.com"]

[Event "Titled Tuesday Blitz July 18 Early 2023"]
[White "Guevara Sanchez, Erick Marvin"]
[Black "Siniauski, Artsiom"]
[WhiteFideId "6700136"]
[BlackFideId "13512269"]
[WhiteElo "2135"]
[BlackElo "2559"]
[Result "0-1"]
[Round "1"]
[TimeControl "180+2"]
[Date "2023.07.18"]
[WhiteClock "0:00:20"]
[BlackClock "0:00:51"]
[Board "195"]

1. e4 {[%clk 0:03:00]}  e6 {[%clk 0:02:47]} 2. d4 {[%clk 0:02:59]}  d5 {[%clk 0:02:48]} 3. Nc3 {[%clk 0:02:58]}  Bb4 {[%clk 0:02:43]} 4. e5 {[%clk 0:02:57]}  Ne7 {[%clk 0:02:42]} 5. a3 {[%clk 0:02:56]}  Bxc3+ {[%clk 0:02:42]} 6. bxc3 {[%clk 0:02:57]}  c5 {[%clk 0:02:42]} 7. Qg4 {[%clk 0:02:48]}  Qc7 {[%clk 0:02:42]} 8. Ne2 {[%clk 0:02:46]}  cxd4 {[%clk 0:02:41]} 9. Qxg7 {[%clk 0:02:36]}  Rg8 {[%clk 0:02:41]} 10. Qxh7 {[%clk 0:02:34]}  Nbc6 {[%clk 0:02:33]} 11. f4 {[%clk 0:02:27]}  dxc3 {[%clk 0:02:33]} 12. Qd3 {[%clk 0:02:20]}  d4 {[%clk 0:02:27]} 13. Nxd4 {[%clk 0:02:14]}  Nxd4 {[%clk 0:02:27]} 14. Qxd4 {[%clk 0:02:14]}  Bd7 {[%clk 0:02:28]} 15. Be3 {[%clk 0:02:09]}  Nf5 {[%clk 0:02:21]} 16. Qd3 {[%clk 0:02:03]}  O-O-O {[%clk 0:02:16]} 17. Qe2 {[%clk 0:01:40]}  Bc6 {[%clk 0:02:12]} 18. Rg1 {[%clk 0:01:13]}  Qa5 {[%clk 0:02:01]} 19. g4 {[%clk 0:01:10]}  Nxe3 {[%clk 0:01:59]} 20. Qxe3 {[%clk 0:01:11]}  Rd2 {[%clk 0:01:59]} 21. Bd3 {[%clk 0:01:09]}  Rxh2 {[%clk 0:01:56]} 22. f5 {[%clk 0:00:56]}  Kb8 {[%clk 0:01:45]} 23. f6 {[%clk 0:00:52]}  Rgh8 {[%clk 0:01:39]} 24. g5 {[%clk 0:00:48]}  Rh1 {[%clk 0:01:34]} 25. Kf2 {[%clk 0:00:45]}  R8h2+ {[%clk 0:01:19]} 26. Kf1 {[%clk 0:00:45]}  Qd5 {[%clk 0:01:10]} 27. Rxh1 {[%clk 0:00:25]}  Rxh1+ {[%clk 0:01:08]} 28. Ke2 {[%clk 0:00:23]}  Rxa1 {[%clk 0:01:04]} 29. g6 {[%clk 0:00:22]}  Qg2+ {[%clk 0:00:52]} 30. Qf2 {[%clk 0:00:20]}  Qg4+ {[%clk 0:00:52]} 31. Qf3 {[%clk 0:00:20]}  Qxf3# {[%clk 0:00:51]} 0-1


[Site "https://www.chess.com"]

[Event "Titled Tuesday Blitz July 18 Early 2023"]
[White "Kashlinskaya, Alina"]
[Black "Ishowmoves57"]
[WhiteFideId "4198026"]
[WhiteElo "2558"]
[BlackElo "2125"]
[Result "1-0"]
[Round "1"]
[TimeControl "180+2"]
[Date "2023.07.18"]
[WhiteClock "0:00:21"]
[BlackClock "0:00:13"]
[Board "196"]

1. e4 {[%clk 0:02:59]}  c5 {[%clk 0:02:59]} 2. Nf3 {[%clk 0:02:53]}  Nc6 {[%clk 0:02:58]} 3. c3 {[%clk 0:02:52]}  Nf6 {[%clk 0:02:57]} 4. e5 {[%clk 0:02:53]}  Nd5 {[%clk 0:02:57]} 5. d4 {[%clk 0:02:52]}  cxd4 {[%clk 0:02:58]} 6. cxd4 {[%clk 0:02:51]}  d6 {[%clk 0:02:58]} 7. Bc4 {[%clk 0:02:49]}  Nb6 {[%clk 0:02:58]} 8. Bb5 {[%clk 0:02:49]}  Bd7 {[%clk 0:02:58]} 9. O-O {[%clk 0:02:48]}  e6 {[%clk 0:02:42]} 10. Nc3 {[%clk 0:02:46]}  dxe5 {[%clk 0:02:38]} 11. dxe5 {[%clk 0:02:45]}  Be7 {[%clk 0:02:32]} 12. Qe2 {[%clk 0:02:40]}  a6 {[%clk 0:02:28]} 13. Bd3 {[%clk 0:02:38]}  Qc7 {[%clk 0:02:21]} 14. Bf4 {[%clk 0:02:36]}  Rd8 {[%clk 0:02:11]} 15. Rad1 {[%clk 0:02:32]}  Nb4 {[%clk 0:02:03]} 16. Bb1 {[%clk 0:02:30]}  Qc4 {[%clk 0:02:02]} 17. Qxc4 {[%clk 0:02:21]}  Nxc4 {[%clk 0:02:03]} 18. b3 {[%clk 0:02:17]}  Na3 {[%clk 0:01:56]} 19. Be4 {[%clk 0:02:15]}  Nb5 {[%clk 0:01:50]} 20. Nxb5 {[%clk 0:01:46]}  Bxb5 {[%clk 0:01:51]} 21. Rxd8+ {[%clk 0:01:46]}  Bxd8 {[%clk 0:01:52]} 22. Ra1 {[%clk 0:01:31]}  Bc6 {[%clk 0:01:45]} 23. Nd2 {[%clk 0:01:28]}  O-O {[%clk 0:01:31]} 24. a3 {[%clk 0:01:25]}  Nd5 {[%clk 0:01:27]} 25. Bg3 {[%clk 0:01:22]}  Bc7 {[%clk 0:01:22]} 26. Nc4 {[%clk 0:01:23]}  Rd8 {[%clk 0:01:10]} 27. h4 {[%clk 0:01:22]}  f5 {[%clk 0:01:05]} 28. exf6 {[%clk 0:00:55]}  Bxg3 {[%clk 0:01:03]} 29. f7+ {[%clk 0:00:55]}  Kxf7 {[%clk 0:01:03]} 30. fxg3 {[%clk 0:00:56]}  Ke7 {[%clk 0:00:51]} 31. Re1 {[%clk 0:00:52]}  Nc3 {[%clk 0:00:44]} 32. Bxh7 {[%clk 0:00:50]}  b5 {[%clk 0:00:34]} 33. Ne5 {[%clk 0:00:49]}  Bb7 {[%clk 0:00:34]} 34. Bd3 {[%clk 0:00:46]}  Rd5 {[%clk 0:00:24]} 35. Bf1 {[%clk 0:00:20]}  Rd2 {[%clk 0:00:22]} 36. g4 {[%clk 0:00:21]}  Ne4 {[%clk 0:00:21]} 37. Nf3 {[%clk 0:00:19]}  Rb2 {[%clk 0:00:20]} 38. b4 {[%clk 0:00:18]}  Ng3 {[%clk 0:00:20]} 39. g5 {[%clk 0:00:19]}  Nxf1 {[%clk 0:00:20]} 40. Rxf1 {[%clk 0:00:18]}  Rb3 {[%clk 0:00:18]} 41. Ne5 {[%clk 0:00:18]}  Rg3 {[%clk 0:00:18]} 42. Rf7+ {[%clk 0:00:18]}  Kd6 {[%clk 0:00:18]} 43. Rxb7 {[%clk 0:00:18]}  Kxe5 {[%clk 0:00:18]} 44. Kf2 {[%clk 0:00:17]}  Rxa3 {[%clk 0:00:18]} 45. Rxg7 {[%clk 0:00:17]}  Ra4 {[%clk 0:00:19]} 46. h5 {[%clk 0:00:16]}  Rxb4 {[%clk 0:00:19]} 47. h6 {[%clk 0:00:17]}  Rh4 {[%clk 0:00:19]} 48. h7 {[%clk 0:00:18]}  a5 {[%clk 0:00:18]} 49. g6 {[%clk 0:00:18]}  a4 {[%clk 0:00:18]} 50. Rg8 {[%clk 0:00:19]}  a3 {[%clk 0:00:17]} 51. h8=Q+ {[%clk 0:00:19]}  Rxh8 {[%clk 0:00:16]} 52. Rxh8 {[%clk 0:00:20]}  Kf6 {[%clk 0:00:15]} 53. Ra8 {[%clk 0:00:19]}  b4 {[%clk 0:00:15]} 54. Ke3 {[%clk 0:00:20]}  Kxg6 {[%clk 0:00:15]} 55. Kd3 {[%clk 0:00:20]}  Kf5 {[%clk 0:00:15]} 56. Kc4 {[%clk 0:00:21]}  e5 {[%clk 0:00:16]} 57. Kxb4 {[%clk 0:00:22]}  e4 {[%clk 0:00:17]} 58. Rxa3 {[%clk 0:00:21]}  e3 {[%clk 0:00:18]} 59. Rxe3 {[%clk 0:00:20]}  Kf4 {[%clk 0:00:13]} 60. Rf3+ {[%clk 0:00:21]} 1-0


[Site "https://www.chess.com"]

[Event "Titled Tuesday Blitz July 18 Early 2023"]
[White "campochess"]
[Black "Portela Peleteiro, Alberto"]
[BlackFideId "22276106"]
[WhiteElo "2120"]
[BlackElo "2555"]
[Result "0-1"]
[Round "1"]
[TimeControl "180+2"]
[Date "2023.07.18"]
[WhiteClock "0:01:53"]
[BlackClock "0:01:48"]
[Board "199"]

1. d4 {[%clk 0:02:59]}  d6 {[%clk 0:02:59]} 2. e4 {[%clk 0:02:57]}  Nf6 {[%clk 0:02:59]} 3. Nc3 {[%clk 0:02:57]}  e5 {[%clk 0:03:00]} 4. Nf3 {[%clk 0:02:55]}  Nbd7 {[%clk 0:02:59]} 5. b3 {[%clk 0:02:52]}  Be7 {[%clk 0:02:56]} 6. Bb2 {[%clk 0:02:52]}  O-O {[%clk 0:02:56]} 7. g3 {[%clk 0:02:48]}  Re8 {[%clk 0:02:53]} 8. d5 {[%clk 0:02:46]}  c6 {[%clk 0:02:51]} 9. dxc6 {[%clk 0:02:43]}  bxc6 {[%clk 0:02:50]} 10. Be2 {[%clk 0:02:36]}  Nc5 {[%clk 0:02:48]} 11. Nd2 {[%clk 0:02:34]}  Bh3 {[%clk 0:02:46]} 12. Bf3 {[%clk 0:02:30]}  Qc7 {[%clk 0:02:26]} 13. Qe2 {[%clk 0:02:29]}  Rad8 {[%clk 0:02:21]} 14. O-O-O {[%clk 0:02:28]}  d5 {[%clk 0:02:22]} 15. exd5 {[%clk 0:02:27]}  cxd5 {[%clk 0:02:22]} 16. Qb5 {[%clk 0:02:21]}  Bf5 {[%clk 0:02:02]} 17. Nf1 {[%clk 0:02:14]}  d4 {[%clk 0:01:59]} 18. Na4 {[%clk 0:01:54]}  Nxa4 {[%clk 0:01:48]} 19. Qxa4 {[%clk 0:01:53]}  Qxc2# {[%clk 0:01:48]} 0-1


[Site "https://www.chess.com"]

[Event "Titled Tuesday Blitz July 18 Early 2023"]
[White "Floresvillar Gonzalez, Luis Migu"]
[Black "ArtemDyachuk"]
[WhiteFideId "5100542"]
[WhiteElo "2063"]
[BlackElo "2541"]
[Result "1-0"]
[Round "1"]
[TimeControl "180+2"]
[Date "2023.07.18"]
[WhiteClock "0:00:09"]
[BlackClock "0:00:00"]
[Board "207"]

1. d4 {[%clk 0:02:59]}  Nf6 {[%clk 0:02:58]} 2. c3 {[%clk 0:02:58]}  g6 {[%clk 0:02:54]} 3. Bg5 {[%clk 0:02:58]}  Bg7 {[%clk 0:02:52]} 4. Nd2 {[%clk 0:02:57]}  d5 {[%clk 0:02:51]} 5. e3 {[%clk 0:02:56]}  O-O {[%clk 0:02:50]} 6. Bd3 {[%clk 0:02:55]}  h6 {[%clk 0:02:40]} 7. Bxf6 {[%clk 0:02:51]}  Bxf6 {[%clk 0:02:40]} 8. f4 {[%clk 0:02:50]}  c5 {[%clk 0:02:35]} 9. Ngf3 {[%clk 0:02:48]}  Nc6 {[%clk 0:02:33]} 10. O-O {[%clk 0:02:45]}  Qb6 {[%clk 0:02:26]} 11. Rb1 {[%clk 0:02:39]}  Kg7 {[%clk 0:02:17]} 12. Qe2 {[%clk 0:02:32]}  a5 {[%clk 0:01:55]} 13. a4 {[%clk 0:02:27]}  Bd7 {[%clk 0:01:44]} 14. Ne5 {[%clk 0:02:26]}  Be8 {[%clk 0:01:43]} 15. Ndf3 {[%clk 0:01:55]}  e6 {[%clk 0:01:36]} 16. g4 {[%clk 0:01:40]}  Nd8 {[%clk 0:01:20]} 17. Bc2 {[%clk 0:01:32]}  Be7 {[%clk 0:01:17]} 18. h4 {[%clk 0:01:30]}  c4 {[%clk 0:00:55]} 19. g5 {[%clk 0:01:29]}  Qc7 {[%clk 0:00:53]} 20. gxh6+ {[%clk 0:01:25]}  Kxh6 {[%clk 0:00:52]} 21. Qg2 {[%clk 0:01:18]}  Bf6 {[%clk 0:00:40]} 22. Ng4+ {[%clk 0:01:15]}  Kg7 {[%clk 0:00:39]} 23. Nxf6 {[%clk 0:01:13]}  Kxf6 {[%clk 0:00:40]} 24. h5 {[%clk 0:00:59]}  Kg7 {[%clk 0:00:34]} 25. hxg6 {[%clk 0:00:57]}  fxg6 {[%clk 0:00:32]} 26. Ne5 {[%clk 0:00:56]}  Rg8 {[%clk 0:00:32]} 27. Kf2 {[%clk 0:00:53]}  Qe7 {[%clk 0:00:27]} 28. Rh1 {[%clk 0:00:51]}  Qf6 {[%clk 0:00:21]} 29. Rbg1 {[%clk 0:00:50]}  Kf8 {[%clk 0:00:16]} 30. Bxg6 {[%clk 0:00:41]}  Ke7 {[%clk 0:00:13]} 31. Rh7+ {[%clk 0:00:38]}  Kd6 {[%clk 0:00:10]} 32. Qg3 {[%clk 0:00:25]}  Bxa4 {[%clk 0:00:07]} 33. Qh2 {[%clk 0:00:17]}  Bc6 {[%clk 0:00:04]} 34. Bc2 {[%clk 0:00:14]}  a4 {[%clk 0:00:03]} 35. Rxg8 {[%clk 0:00:12]}  a3 {[%clk 0:00:03]} 36. bxa3 {[%clk 0:00:10]}  Rxa3 {[%clk 0:00:03]} 37. Rgg7 {[%clk 0:00:10]}  Ra2 {[%clk 0:00:00]} 38. Rd7+ {[%clk 0:00:09]} 1-0


[Site "https://www.chess.com"]

[Event "Titled Tuesday Blitz July 18 Early 2023"]
[White "Sreyas Payyappat"]
[Black "vishwa_vijeta"]
[WhiteFideId "46674969"]
[WhiteElo "2540"]
[BlackElo "2047"]
[Result "1-0"]
[Round "1"]
[TimeControl "180+2"]
[Date "2023.07.18"]
[WhiteClock "0:00:46"]
[BlackClock "0:00:10"]
[Board "208"]

1. e4 {[%clk 0:02:59]}  c5 {[%clk 0:02:59]} 2. Nf3 {[%clk 0:02:59]}  d6 {[%clk 0:02:59]} 3. d4 {[%clk 0:02:57]}  cxd4 {[%clk 0:02:59]} 4. Nxd4 {[%clk 0:02:58]}  Nf6 {[%clk 0:02:59]} 5. Nc3 {[%clk 0:02:58]}  g6 {[%clk 0:02:59]} 6. f4 {[%clk 0:02:58]}  Nc6 {[%clk 0:02:58]} 7. Be3 {[%clk 0:02:57]}  Bg7 {[%clk 0:02:53]} 8. Be2 {[%clk 0:02:57]}  O-O {[%clk 0:02:51]} 9. Qd3 {[%clk 0:02:56]}  Ng4 {[%clk 0:02:37]} 10. Bxg4 {[%clk 0:02:55]}  Bxg4 {[%clk 0:02:38]} 11. O-O {[%clk 0:02:56]}  Rc8 {[%clk 0:02:37]} 12. f5 {[%clk 0:02:52]}  Ne5 {[%clk 0:02:35]} 13. Qd2 {[%clk 0:02:49]}  Nc4 {[%clk 0:02:35]} 14. Qf2 {[%clk 0:02:49]}  Nxe3 {[%clk 0:02:19]} 15. Qxe3 {[%clk 0:02:50]}  Qb6 {[%clk 0:02:18]} 16. Rad1 {[%clk 0:02:38]}  Bxd1 {[%clk 0:02:17]} 17. Rxd1 {[%clk 0:02:39]}  Rc4 {[%clk 0:01:54]} 18. Nce2 {[%clk 0:02:27]}  e5 {[%clk 0:01:36]} 19. fxe6 {[%clk 0:02:25]}  fxe6 {[%clk 0:01:36]} 20. b3 {[%clk 0:02:17]}  Rxd4 {[%clk 0:01:16]} 21. Nxd4 {[%clk 0:02:14]}  e5 {[%clk 0:01:15]} 22. Nf5 {[%clk 0:02:03]}  gxf5 {[%clk 0:01:09]} 23. Qxb6 {[%clk 0:02:02]}  axb6 {[%clk 0:01:10]} 24. exf5 {[%clk 0:02:03]}  Rf6 {[%clk 0:01:04]} 25. g4 {[%clk 0:02:02]}  Bf8 {[%clk 0:01:04]} 26. Kg2 {[%clk 0:01:59]}  Rf7 {[%clk 0:01:01]} 27. Kf3 {[%clk 0:01:59]}  Rc7 {[%clk 0:00:59]} 28. c4 {[%clk 0:01:58]}  Rc5 {[%clk 0:00:59]} 29. a4 {[%clk 0:01:56]}  Kf7 {[%clk 0:00:58]} 30. g5 {[%clk 0:01:52]}  Be7 {[%clk 0:00:58]} 31. h4 {[%clk 0:01:52]}  Rc8 {[%clk 0:00:57]} 32. Ke4 {[%clk 0:01:51]}  Rg8 {[%clk 0:00:54]} 33. f6 {[%clk 0:01:51]}  Bxf6 {[%clk 0:00:42]} 34. Rxd6 {[%clk 0:01:24]}  Bg7 {[%clk 0:00:17]} 35. Rxb6 {[%clk 0:01:19]}  Rd8 {[%clk 0:00:17]} 36. Rxb7+ {[%clk 0:01:13]}  Kf8 {[%clk 0:00:17]} 37. Kf5 {[%clk 0:01:07]}  Re8 {[%clk 0:00:17]} 38. Ke4 {[%clk 0:01:03]}  Rd8 {[%clk 0:00:17]} 39. h5 {[%clk 0:00:50]}  Rd4+ {[%clk 0:00:16]} 40. Kf5 {[%clk 0:00:50]}  Kg8 {[%clk 0:00:02]} 41. h6 {[%clk 0:00:40]}  Bf8 {[%clk 0:00:03]} 42. Kxe5 {[%clk 0:00:39]}  Rg4 {[%clk 0:00:02]} 43. Kf5 {[%clk 0:00:40]}  Rg2 {[%clk 0:00:03]} 44. a5 {[%clk 0:00:40]}  Rf2+ {[%clk 0:00:03]} 45. Kg4 {[%clk 0:00:40]}  Rg2+ {[%clk 0:00:03]} 46. Kh4 {[%clk 0:00:39]}  Rh2+ {[%clk 0:00:04]} 47. Kg3 {[%clk 0:00:39]}  Bd6+ {[%clk 0:00:03]} 48. Kf3 {[%clk 0:00:39]}  Bf8 {[%clk 0:00:03]} 49. Rb8 {[%clk 0:00:39]}  Ra2 {[%clk 0:00:03]} 50. b4 {[%clk 0:00:38]}  Ra4 {[%clk 0:00:03]} 51. c5 {[%clk 0:00:38]}  Ra3+ {[%clk 0:00:02]} 52. Kf4 {[%clk 0:00:38]}  Ra1 {[%clk 0:00:02]} 53. c6 {[%clk 0:00:38]}  Rf1+ {[%clk 0:00:02]} 54. Kg3 {[%clk 0:00:39]}  Rg1+ {[%clk 0:00:01]} 55. Kf2 {[%clk 0:00:38]}  Rb1 {[%clk 0:00:02]} 56. c7 {[%clk 0:00:37]}  Rc1 {[%clk 0:00:01]} 57. c8=Q {[%clk 0:00:38]}  Rxc8 {[%clk 0:00:02]} 58. Rxc8 {[%clk 0:00:39]}  Kf7 {[%clk 0:00:03]} 59. Rxf8+ {[%clk 0:00:38]}  Kxf8 {[%clk 0:00:03]} 60. a6 {[%clk 0:00:39]}  Ke7 {[%clk 0:00:04]} 61. a7 {[%clk 0:00:39]}  Kd6 {[%clk 0:00:05]} 62. a8=Q {[%clk 0:00:40]}  Ke6 {[%clk 0:00:05]} 63. Qe4+ {[%clk 0:00:40]}  Kd6 {[%clk 0:00:05]} 64. Kf3 {[%clk 0:00:41]}  Kc7 {[%clk 0:00:05]} 65. Kf4 {[%clk 0:00:42]}  Kb6 {[%clk 0:00:06]} 66. Qc4 {[%clk 0:00:42]}  Ka7 {[%clk 0:00:07]} 67. Ke5 {[%clk 0:00:42]}  Kb8 {[%clk 0:00:07]} 68. Kd6 {[%clk 0:00:43]}  Ka8 {[%clk 0:00:08]} 69. Kd7 {[%clk 0:00:44]}  Ka7 {[%clk 0:00:09]} 70. Qb5 {[%clk 0:00:44]}  Ka8 {[%clk 0:00:10]} 71. Kc7 {[%clk 0:00:45]}  Ka7 {[%clk 0:00:10]} 72. Qa5# {[%clk 0:00:46]} 1-0


[Site "https://www.chess.com"]

[Event "Titled Tuesday Blitz July 18 Early 2023"]
[White "Phillips, Rene"]
[Black "Geivondian, Arman"]
[WhiteFideId "2056275"]
[BlackFideId "24102032"]
[WhiteElo "2046"]
[BlackElo "2537"]
[Result "0-1"]
[Round "1"]
[TimeControl "180+2"]
[Date "2023.07.18"]
[WhiteClock "0:01:47"]
[BlackClock "0:02:52"]
[Board "209"]

1. d4 {[%clk 0:02:46]}  Nf6 {[%clk 0:02:59]} 2. Bf4 {[%clk 0:02:46]}  e6 {[%clk 0:02:56]} 3. e3 {[%clk 0:02:46]}  c5 {[%clk 0:02:56]} 4. c3 {[%clk 0:02:45]}  Nc6 {[%clk 0:02:54]} 5. Nd2 {[%clk 0:02:44]}  d6 {[%clk 0:02:54]} 6. Bd3 {[%clk 0:02:42]}  cxd4 {[%clk 0:02:54]} 7. exd4 {[%clk 0:02:41]}  e5 {[%clk 0:02:55]} 8. Bg3 {[%clk 0:02:34]}  exd4 {[%clk 0:02:55]} 9. cxd4 {[%clk 0:02:33]}  Nxd4 {[%clk 0:02:56]} 10. Qa4+ {[%clk 0:02:28]}  Nc6 {[%clk 0:02:56]} 11. Ngf3 {[%clk 0:02:24]}  Be7 {[%clk 0:02:56]} 12. O-O {[%clk 0:02:23]}  O-O {[%clk 0:02:55]} 13. Rfe1 {[%clk 0:02:23]}  Re8 {[%clk 0:02:54]} 14. Rad1 {[%clk 0:02:22]}  Bd7 {[%clk 0:02:54]} 15. Ne4 {[%clk 0:02:19]}  Ne5 {[%clk 0:02:52]} 16. Nxe5 {[%clk 0:02:04]}  Bxa4 {[%clk 0:02:52]} 17. Nxf6+ {[%clk 0:01:52]}  Bxf6 {[%clk 0:02:53]} 18. b3 {[%clk 0:01:47]}  Bxe5 {[%clk 0:02:52]} 0-1


[Site "https://www.chess.com"]